[Event "Istanbul Open 2018"]
[Site "Istanbul"]
[Date "2018.09.08"]
[Round "9"]
[White "Kelpetin, Umut Can"]
[Black "Akin, Yagiz Cinar"]
[Result "0-1"]
[ECO "B07"]
[WhiteElo "1798"]
[BlackElo "1963"]
[Annotator "NA"]
[PlyCount "42"]
[EventDate "2018.09.02"]
[EventType "swiss"]
[EventCountry "TUR"]
[SourceTitle "playchess.com"]
[Source "ChessBase"]
[SourceQuality "1"]
[TimeControl "5400+30"]

1. e4 {[%emt 0:00:30]} g6 {[%emt 0:00:30]} 2. Nc3 {[%emt 0:00:00]} Bg7 {[%emt 0:00:00]} 3. f4 {[%emt 0:00:00]} d6 {[%emt 0:00:00]} 4. Nf3 {[%emt 0:00:00]} Nf6 {[%emt 0:00:30]} 5. Bc4 {[%emt 0:00:00]} O-O {[%emt 0:00:00]} 6. d3 {[%emt 0:00:00]} a6 {[%emt 0:00:00] B07: Pirc-Ufimzew-Verteidigung} (6... c5 7. O-O Nc6 8. Kh1 e6 9. Bb3 Na5 10. Qe1 Nxb3 11. axb3 b6 12. Qh4 Nh5 13. Qxd8 Rxd8 14. e5 f5 15. exd6 Rxd6 {½-½ (44) Gashimov,V (2758)-Zubov,A (2581) Warsaw 2009}) 7. a4 {[%emt 0:00:00]} Nc6 {[%emt 0:00:30]} 8. O-O {[%emt 0:00:30]} Bg4 {[%emt 0:00:30]} 9. Qe1 $146 {[%emt 0:02:30]} ({Vorgänger:} 9. h3 Bxf3 10. Qxf3 e6 11. Be3 d5 12. exd5 exd5 13. Bxd5 Nxd5 14. Qxd5 {1-0 (56) Bennett,H (2003)-Fraemohs,P (1981) Auckland 2010}) 9... Bxf3 {[%emt 0:00:30]} 10. Rxf3 {[%emt 0:00:00]} Nd4 {[%emt 0:00:30]} 11. Rh3 {[%emt 0:00:00]} Nxc2 {[%emt 0:09:30]} 12. Qh4 {[%emt 0:00:30]} e6 $2 {[%emt 0:04:30]} (12... Nxa1 $19 13. e5 Nh5) 13. f5 $2 {[%emt 0:06:30]} (13. Rb1 $17 h5 14. Bb3) 13... Nh5 {[%emt 0:07:30]} 14. Qg4 {[%emt 0:00:00]} exf5 {[%emt 0:00:00]} 15. exf5 {[%emt 0:00:00]} Qf6 {[%emt 0:06:00]} 16. Ne4 {[%emt 0:05:30]} Qxf5 {[%emt 0:04:30]} 17. Qxf5 {[%emt 0:00:30]} gxf5 {[%emt 0:00:30]} 18. Nc3 {[%emt 0:00:30]} Nxa1 {[%emt 0:01:30]} 19. Rxh5 {[%emt 0:00:00]} c6 {[%emt 0:01:30]} 20. Bf4 {[%emt 0:01:00]} d5 $19 {[%emt 0:01:30]} 21. Ba2 {[%emt 0:00:30]} Rfe8 {[%emt 0:00:30]} 0-1

[Event "Istanbul Open 2018"]
[Site "Istanbul"]
[Date "2018.09.08"]
[Round "9"]
[White "Bayramov, Araz"]
[Black "Gulceken, Sumeyye"]
[Result "1-0"]
[ECO "D02"]
[WhiteElo "1750"]
[BlackElo "1549"]
[Annotator "NA"]
[PlyCount "125"]
[EventDate "2018.09.02"]
[EventType "swiss"]
[EventCountry "TUR"]
[SourceTitle "playchess.com"]
[Source "ChessBase"]
[SourceQuality "1"]
[TimeControl "5400+30"]

1. d4 {[%emt 0:02:30]} Nf6 {[%emt 0:00:00]} 2. Bf4 {[%emt 0:00:30]} e6 {[%emt 0:00:00]} 3. Nf3 {[%emt 0:00:30]} d5 {[%emt 0:00:30]} 4. e3 {[%emt 0:00:30]} Bd6 {[%emt 0:02:30]} 5. Ne5 {[%emt 0:00:30]} O-O {[%emt 0:00:30]} 6. Bd3 {[%emt 0:00:30]} c6 {[%emt 0:01:30]} 7. Nd2 {[%emt 0:00:30]} Nbd7 {[%emt 0:00:30]} 8. Nxf7 {[%emt 0:00:30]} Rxf7 {[%emt 0:00:30]} 9. Bxd6 {[%emt 0:01:30]} Qb6 {[%emt 0:05:30]} 10. Nb3 {[%emt 0:39:30]} Ne8 {[%emt 0:04:30]} 11. Bf4 {[%emt 0:05:30]} c5 {[%emt 0:03:30]} 12. dxc5 {[%emt 0:03:30]} Nxc5 {[%emt 0:00:30]} 13. Nxc5 {[%emt 0:00:00]} Qxc5 {[%emt 0:00:00]} 14. Be5 {[%emt 0:00:00]} Qb4+ {[%emt 0:03:00]} 15. Bc3 {[%emt 0:04:30]} Qh4 {[%emt 0:01:30]} 16. O-O {[%emt 0:10:30]} Nf6 {[%emt 0:02:30]} 17. f3 {[%emt 0:05:30]} Bd7 {[%emt 0:17:30]} 18. Qe1 {[%emt 0:00:30]} Qh6 {[%emt 0:05:30]} 19. Be5 {[%emt 0:04:43]} g5 {[%emt 0:07:30]} 20. c4 {[%emt 0:02:48]} dxc4 {[%emt 0:05:30]} 21. Bxc4 {[%emt 0:00:02]} Rc8 {[%emt 0:02:30]} 22. Bb3 {[%emt 0:01:27]} Nd5 {[%emt 0:01:30]} 23. Rd1 {[%emt 0:03:10]} Nb6 {[%emt 0:08:30]} 24. Rd4 {[%emt 0:07:09]} Rf5 {[%emt 0:07:29]} 25. Bg3 {[%emt 0:01:40]} Kf8 {[%emt 0:08:05]} 26. Qd2 {[%emt 0:00:48]} Rf7 {[%emt 0:03:08]} 27. Rd1 {[%emt 0:01:19]} Qf6 {[%emt 0:08:25]} 28. Qa5 {[%emt 0:01:49]} Ra8 {[%emt 0:00:49]} 29. Bc7 {[%emt 0:00:30]} Nd5 {[%emt 0:00:35]} 30. e4 {[%emt 0:00:30]} b6 {[%emt 0:00:43]} 31. Bd6+ {[%emt 0:00:30]} Ne7 {[%emt 0:00:06]} 32. Qb4 {[%emt 0:00:41]} Bc6 {[%emt 0:00:34]} 33. Bxe7+ {[%emt 0:00:04]} Qxe7 {[%emt 0:00:41]} 34. Qxe7+ {[%emt 0:00:30]} Rxe7 {[%emt 0:00:12]} 35. Rd6 {[%emt 0:00:01]} Be8 {[%emt 0:00:35]} 36. Rxe6 {[%emt 0:00:30]} Rxe6 {[%emt 0:00:30]} 37. Bxe6 {[%emt 0:00:49]} Ke7 {[%emt 0:00:04]} 38. Bf5 {[%emt 0:00:37]} h6 {[%emt 0:00:04]} 39. Kf2 {[%emt 0:00:02]} a5 {[%emt 0:00:22]} 40. Ke3 {[%emt 0:00:10]} Ra7 {[%emt 0:00:14]} 41. Rc1 {[%emt 0:00:09]} b5 {[%emt 0:01:37]} 42. g3 {[%emt 0:01:26]} b4 {[%emt 0:00:28]} 43. h4 {[%emt 0:02:22]} gxh4 {[%emt 0:00:17]} 44. gxh4 {[%emt 0:00:00]} a4 {[%emt 0:00:43]} 45. e5 {[%emt 0:00:58]} a3 {[%emt 0:00:31]} 46. b3 {[%emt 0:00:26]} Ra8 {[%emt 0:00:41]} 47. Rc7+ {[%emt 0:00:39]} Kf8 {[%emt 0:00:22]} 48. Rb7 {[%emt 0:00:33]} Ra6 {[%emt 0:00:40]} 49. Rxb4 {[%emt 0:00:24]} Rc6 {[%emt 0:00:05]} 50. Rc4 {[%emt 0:00:13]} Rb6 {[%emt 0:00:22]} 51. Rc7 {[%emt 0:00:34]} Bc6 {[%emt 0:00:38]} 52. Ra7 {[%emt 0:00:37]} Rb5 {[%emt 0:00:26]} 53. f4 {[%emt 0:00:19]} Rc5 {[%emt 0:00:35]} 54. Rxa3 {[%emt 0:00:11]} Rc3+ {[%emt 0:00:11]} 55. Kd4 {[%emt 0:00:59]} Rf3 {[%emt 0:00:12]} 56. Kc5 {[%emt 0:00:03]} Be8 {[%emt 0:00:26]} 57. Ra8 {[%emt 0:00:49]} Ke7 {[%emt 0:00:07]} 58. Ra7+ {[%emt 0:00:37]} Kf8 {[%emt 0:00:07]} 59. Kd6 {[%emt 0:00:46]} Rxf4 {[%emt 0:00:18]} 60. Ke6 {[%emt 0:00:09]} Rb4 {[%emt 0:00:29]} 61. Kf6 {[%emt 0:00:11]} Rxh4 {[%emt 0:02:26]} 62. Ra8 {[%emt 0:00:05]} Rf4 {[%emt 0:00:08]} 63. e6 {[%emt 0:00:05]} 1-0

[Event "Istanbul Open 2018"]
[Site "Istanbul"]
[Date "2018.09.08"]
[Round "9"]
[White "Gezici, Omer Ata"]
[Black "Ocakacan, Deniz"]
[Result "1-0"]
[ECO "B51"]
[WhiteElo "1736"]
[BlackElo "1650"]
[Annotator "NA"]
[PlyCount "55"]
[EventDate "2018.09.02"]
[EventType "swiss"]
[EventCountry "TUR"]
[SourceTitle "playchess.com"]
[Source "ChessBase"]
[SourceQuality "1"]
[TimeControl "5400+30"]

1. e4 {[%emt 0:00:30]} c5 {[%emt 0:04:30]} 2. Nf3 {[%emt 0:00:00]} d6 {[%emt 0:00:30]} 3. Bb5+ {[%emt 0:00:00]} Nd7 {[%emt 0:00:00]} 4. O-O {[%emt 0:00:00]} Ngf6 {[%emt 0:00:00]} 5. Re1 {[%emt 0:00:00]} a6 {[%emt 0:00:30]} 6. Bd3 {[%emt 0:01:30]} b5 {[%emt 0:00:30]} 7. c4 {[%emt 0:00:00]} g5 {[%emt 0:00:30]} 8. Nxg5 {[%emt 0:00:00]} Ne5 {[%emt 0:01:30]} 9. Bf1 {[%emt 0:00:30]} bxc4 {[%emt 0:01:30]} 10. d4 {[%emt 0:00:30]} cxd3 {[%emt 0:00:00]} 11. f4 {[%emt 0:00:30]} Nc6 {[%emt 0:23:00]} 12. Bxd3 {[%emt 0:14:30]} h6 {[%emt 0:04:30]} 13. Nf3 {[%emt 0:00:30]} Qb6 {[%emt 0:00:30]} 14. Na3 {[%emt 0:16:30]} Na5 {[%emt 0:23:30]} 15. e5 {[%emt 0:17:30]} dxe5 {[%emt 0:12:30]} 16. fxe5 {[%emt 0:01:30]} Nd5 {[%emt 0:04:30]} 17. Be4 {[%emt 0:09:30]} e6 {[%emt 0:03:24]} 18. Bxd5 {[%emt 0:02:30]} exd5 {[%emt 0:00:07]} 19. Qxd5 {[%emt 0:01:30]} Bb7 {[%emt 0:00:25]} 20. Qd1 {[%emt 0:03:30]} Rg8 {[%emt 0:03:12]} 21. e6 {[%emt 0:09:30]} fxe6 {[%emt 0:00:36]} 22. Nh4 {[%emt 0:01:22]} c4+ {[%emt 0:06:20]} 23. Be3 {[%emt 0:06:33]} Qc6 {[%emt 0:02:09]} 24. Qh5+ {[%emt 0:02:55]} Ke7 {[%emt 0:01:15]} 25. Re2 {[%emt 0:05:18]} Qd5 {[%emt 0:01:01]} 26. Ng6+ {[%emt 0:01:56]} Ke8 {[%emt 0:01:45]} 27. Ne5+ {[%emt 0:00:36]} Kd8 {[%emt 0:00:35]} 28. Bb6+ {[%emt 0:01:47]} 1-0

[Event "Istanbul Open 2018"]
[Site "Istanbul"]
[Date "2018.09.08"]
[Round "9"]
[White "Kocer, Ahmet Doruk"]
[Black "Kavacik, Ahmet"]
[Result "1-0"]
[ECO "B90"]
[WhiteElo "1635"]
[BlackElo "1800"]
[Annotator "NA"]
[PlyCount "69"]
[EventDate "2018.09.02"]
[EventType "swiss"]
[EventCountry "TUR"]
[SourceTitle "playchess.com"]
[Source "ChessBase"]
[SourceQuality "1"]
[TimeControl "5400+30"]

1. e4 {[%emt 0:00:30]} c5 {[%emt 0:00:30]} 2. Nf3 {[%emt 0:00:00]} d6 {[%emt 0:00:00]} 3. d4 {[%emt 0:00:00]} cxd4 {[%emt 0:00:00]} 4. Nxd4 {[%emt 0:00:00]} Nf6 {[%emt 0:00:30]} 5. Nc3 {[%emt 0:00:00]} a6 {[%emt 0:00:00]} 6. h3 {[%emt 0:00:30]} e5 {[%emt 0:00:00]} 7. Nb3 {[%emt 0:00:30]} Be7 {[%emt 0:00:30]} 8. Be3 {[%emt 0:00:30]} Be6 {[%emt 0:00:30]} 9. Be2 {[%emt 0:01:30]} d5 $11 {[%emt 0:08:30]} 10. exd5 {[%emt 0:03:30]} Nxd5 {[%emt 0:00:30]} 11. Nxd5 {[%emt 0:00:30]} Bxd5 {[%emt 0:00:30]} 12. O-O {[%emt 0:01:30]} O-O {[%emt 0:01:30]} 13. c4 {[%emt 0:03:30]} Bc6 {[%emt 0:08:30]} 14. Qc2 {[%emt 0:04:30]} Nd7 {[%emt 0:03:30]} 15. Rad1 {[%emt 0:07:30]} Qc7 {[%emt 0:06:30]} 16. Bd3 {[%emt 0:05:30]} Nf6 {[%emt 0:07:30]} 17. Qc3 {[%emt 0:02:30]} Ne4 {[%emt 0:07:30]} 18. Qc2 {[%emt 0:02:30]} f5 {[%emt 0:01:30]} 19. a3 {[%emt 0:19:30]} b6 {[%emt 0:06:30]} 20. Rfe1 {[%emt 0:03:30]} Rf6 {[%emt 0:08:30]} 21. f3 {[%emt 0:12:30]} Ng3 {[%emt 0:06:30]} 22. Qf2 {[%emt 0:02:30]} Ba4 {[%emt 0:16:35]} 23. Qc2 {[%emt 0:08:57]} Raf8 {[%emt 0:02:24]} 24. c5 {[%emt 0:05:40]} b5 {[%emt 0:03:39]} 25. Qc3 {[%emt 0:02:48]} Rg6 {[%emt 0:03:19]} 26. Bc2 {[%emt 0:02:57]} Kh8 {[%emt 0:03:31]} 27. Rd5 {[%emt 0:01:34]} e4 {[%emt 0:00:57]} 28. f4 {[%emt 0:03:56]} Bh4 {[%emt 0:02:01]} 29. Nd4 {[%emt 0:02:36]} Bxc2 {[%emt 0:00:23]} 30. Qxc2 {[%emt 0:00:29]} Nh5 {[%emt 0:00:50]} 31. Rf1 {[%emt 0:00:24]} Ng3 {[%emt 0:01:41]} 32. Rd1 {[%emt 0:00:19]} Nh5 {[%emt 0:00:11]} 33. Nxf5 {[%emt 0:00:22]} Rxf5 {[%emt 0:00:52]} 34. Rxf5 {[%emt 0:00:22]} Ng3 {[%emt 0:00:30]} 35. Rf8# {[%emt 0:00:01]} 1-0

[Event "Istanbul Open 2018"]
[Site "Istanbul"]
[Date "2018.09.08"]
[Round "9"]
[White "Ekinci, Berkay"]
[Black "Topcu, Tibet Tuna"]
[Result "1-0"]
[ECO "D13"]
[WhiteElo "1612"]
[BlackElo "1590"]
[Annotator "NA"]
[PlyCount "85"]
[EventDate "2018.09.02"]
[EventType "swiss"]
[EventCountry "TUR"]
[SourceTitle "playchess.com"]
[Source "ChessBase"]
[SourceQuality "1"]
[TimeControl "5400+30"]

1. c4 {[%emt 0:00:30]} c6 {[%emt 0:00:30]} 2. g3 {[%emt 0:00:00]} d5 {[%emt 0:00:00]} 3. Bg2 {[%emt 0:00:00]} Nf6 {[%emt 0:00:00]} 4. cxd5 {[%emt 0:00:30]} cxd5 {[%emt 0:00:30]} 5. d4 {[%emt 0:01:30]} Nc6 {[%emt 0:01:30]} 6. Nc3 {[%emt 0:00:30]} e6 {[%emt 0:02:30]} 7. Nf3 {[%emt 0:01:30]} Bd6 {[%emt 0:01:30]} 8. O-O {[%emt 0:02:30]} O-O {[%emt 0:01:30]} 9. Bf4 {[%emt 0:07:30]} a6 {[%emt 0:03:30]} 10. Na4 {[%emt 0:12:30]} Ne4 {[%emt 0:07:30]} 11. Ne5 {[%emt 0:04:30]} Bxe5 {[%emt 0:08:30]} 12. Bxe5 {[%emt 0:09:30]} Nxe5 {[%emt 0:09:30]} 13. dxe5 {[%emt 0:01:30]} Qa5 {[%emt 0:04:30]} 14. Bxe4 {[%emt 0:21:30]} dxe4 {[%emt 0:00:30]} 15. Qd4 {[%emt 0:01:30]} Qd5 {[%emt 0:15:30]} 16. Rfd1 {[%emt 0:03:30]} b5 {[%emt 0:07:30]} 17. Qc5 {[%emt 0:04:30]} Qb7 {[%emt 0:01:30]} 18. Nb6 {[%emt 0:02:30]} Rb8 {[%emt 0:00:30]} 19. Rd6 {[%emt 0:00:30]} Qe7 {[%emt 0:04:30]} 20. Rc1 {[%emt 0:04:23]} f6 {[%emt 0:05:30]} 21. exf6 {[%emt 0:02:24]} Qxf6 {[%emt 0:03:30]} 22. Rc6 {[%emt 0:02:21]} e3 {[%emt 0:06:38]} 23. Qxe3 {[%emt 0:01:39]} Qxb2 {[%emt 0:03:19]} 24. Nxc8 {[%emt 0:03:58]} Qxa2 {[%emt 0:00:27]} 25. Ne7+ {[%emt 0:01:02]} Kh8 {[%emt 0:00:30]} 26. Qe5 {[%emt 0:05:05]} Rbe8 {[%emt 0:02:03]} 27. Rc7 {[%emt 0:00:23]} Rf6 {[%emt 0:00:54]} 28. Nf5 {[%emt 0:01:24]} Qd5 {[%emt 0:01:02]} 29. Qxd5 {[%emt 0:00:52]} exd5 {[%emt 0:00:10]} 30. Nxg7 {[%emt 0:00:55]} Rxe2 {[%emt 0:01:44]} 31. Nh5 {[%emt 0:00:59]} Rf8 {[%emt 0:00:24]} 32. Ra7 {[%emt 0:00:35]} Re6 {[%emt 0:01:27]} 33. Nf4 {[%emt 0:00:54]} Rh6 {[%emt 0:02:21]} 34. Nxd5 {[%emt 0:00:18]} Rd8 {[%emt 0:01:05]} 35. Nb4 {[%emt 0:00:24]} Rhd6 {[%emt 0:00:24]} 36. Rxa6 {[%emt 0:00:55]} Rd2 {[%emt 0:01:20]} 37. Rb6 {[%emt 0:01:16]} Rf8 {[%emt 0:00:11]} 38. Rf1 {[%emt 0:01:15]} Rf5 {[%emt 0:00:29]} 39. Nc6 {[%emt 0:00:17]} Rc5 {[%emt 0:00:38]} 40. Kg2 {[%emt 0:01:00]} Rb2 {[%emt 0:01:07]} 41. Ra1 {[%emt 0:00:36]} Kg7 {[%emt 0:01:05]} 42. Nd4 {[%emt 0:00:10]} Rc7 {[%emt 0:00:36]} 43. Ne6+ {[%emt 0:00:01]} 1-0

[Event "Istanbul Open 2018"]
[Site "Istanbul"]
[Date "2018.09.08"]
[Round "9"]
[White "Topsir, Furkan"]
[Black "Sen, Irem"]
[Result "0-1"]
[ECO "B06"]
[WhiteElo "1550"]
[BlackElo "1670"]
[Annotator "NA"]
[PlyCount "84"]
[EventDate "2018.09.02"]
[EventType "swiss"]
[EventCountry "TUR"]
[SourceTitle "playchess.com"]
[Source "ChessBase"]
[SourceQuality "1"]
[TimeControl "5400+30"]

1. e4 {[%emt 0:00:30]} g6 {[%emt 0:00:30]} 2. d4 {[%emt 0:00:00]} Bg7 {[%emt 0:00:00]} 3. Nc3 {[%emt 0:00:00]} c6 {[%emt 0:00:00]} 4. Nge2 {[%emt 0:00:30]} d5 {[%emt 0:00:30]} 5. e5 {[%emt 0:04:30]} f6 {[%emt 0:02:30]} 6. exf6 {[%emt 0:07:30]} exf6 {[%emt 0:02:30]} 7. h3 {[%emt 0:02:30]} Ne7 {[%emt 0:02:30]} 8. g4 {[%emt 0:01:30]} Be6 {[%emt 0:20:30]} 9. Bg2 {[%emt 0:03:30]} Nd7 {[%emt 0:02:30]} 10. O-O {[%emt 0:18:30]} O-O {[%emt 0:05:30]} 11. Kh1 {[%emt 0:07:30]} Nb6 {[%emt 0:02:30]} 12. b3 {[%emt 0:02:30]} a5 {[%emt 0:03:30]} 13. a4 {[%emt 0:03:30]} Nbc8 {[%emt 0:02:30]} 14. Nf4 {[%emt 0:13:30]} Bf7 {[%emt 0:00:30]} 15. h4 {[%emt 0:04:30]} Nd6 {[%emt 0:06:30]} 16. Be3 {[%emt 0:12:21]} Qd7 {[%emt 0:16:30]} 17. Qf3 {[%emt 0:03:01]} Rae8 {[%emt 0:03:30]} 18. Rad1 {[%emt 0:02:13]} Nec8 {[%emt 0:02:30]} 19. Kh2 {[%emt 0:01:06]} Ne4 {[%emt 0:02:30]} 20. Nxe4 {[%emt 0:03:22]} dxe4 {[%emt 0:00:30]} 21. Qg3 {[%emt 0:00:00]} h6 {[%emt 0:11:28]} 22. Bh3 {[%emt 0:02:44]} g5 {[%emt 0:00:58]} 23. Nh5 {[%emt 0:01:57]} Be6 {[%emt 0:01:17]} 24. Nxg7 {[%emt 0:00:52]} Kxg7 {[%emt 0:00:06]} 25. f4 {[%emt 0:01:04]} exf3 {[%emt 0:01:25]} 26. Rxf3 {[%emt 0:02:12]} Bd5 {[%emt 0:00:01]} 27. Rf5 {[%emt 0:00:51]} Nd6 {[%emt 0:00:20]} 28. hxg5 {[%emt 0:01:04]} hxg5 {[%emt 0:03:11]} 29. Rdf1 {[%emt 0:00:38]} Qe6 {[%emt 0:00:39]} 30. Bxg5 {[%emt 0:00:25]} Ne4 {[%emt 0:02:29]} 31. Bxf6+ {[%emt 0:00:30]} Nxf6 {[%emt 0:00:55]} 32. Qh4 {[%emt 0:00:31]} Nh7 {[%emt 0:01:39]} 33. g5 {[%emt 0:00:26]} Qd6+ {[%emt 0:00:46]} 34. Kg1 {[%emt 0:00:19]} Be4 {[%emt 0:01:10]} 35. Rf6 {[%emt 0:00:49]} Qxd4+ {[%emt 0:00:32]} 36. Kh2 {[%emt 0:00:26]} Qd2+ {[%emt 0:00:23]} 37. R1f2 {[%emt 0:00:34]} Qxg5 {[%emt 0:00:33]} 38. Rh6 {[%emt 0:00:31]} Qxh4 {[%emt 0:00:22]} 39. Rxh4 {[%emt 0:00:09]} Rxf2+ {[%emt 0:00:04]} 40. Kg3 {[%emt 0:00:09]} Rf3+ {[%emt 0:00:08]} 41. Kg4 {[%emt 0:00:11]} Nf6+ {[%emt 0:00:16]} 42. Kg5 {[%emt 0:00:05]} Re5+ {[%emt 0:00:09]} 0-1

[Event "Istanbul Open 2018"]
[Site "Istanbul"]
[Date "2018.09.08"]
[Round "9"]
[White "Koc, Deniz"]
[Black "Yildiz, Erhan"]
[Result "*"]
[ECO "C27"]
[WhiteElo "1540"]
[BlackElo "1777"]
[Annotator "NA"]
[PlyCount "91"]
[EventDate "2018.09.02"]
[EventType "swiss"]
[EventCountry "TUR"]
[SourceTitle "playchess.com"]
[Source "ChessBase"]
[SourceQuality "1"]
[TimeControl "5400+30"]

1. e4 {[%emt 0:00:30]} e5 {[%emt 0:00:30]} 2. Nc3 {[%emt 0:00:00]} Nc6 {[%emt 0:00:30]} 3. Bc4 {[%emt 0:00:00]} Nf6 {[%emt 0:01:30]} 4. d3 {[%emt 0:00:30]} Bc5 {[%emt 0:01:30]} 5. f4 {[%emt 0:02:30]} d6 {[%emt 0:04:30]} 6. h3 {[%emt 0:23:30]} Na5 {[%emt 0:14:30]} 7. Bb3 {[%emt 0:05:30]} Nxb3 {[%emt 0:04:30]} 8. axb3 {[%emt 0:00:00]} c6 {[%emt 0:06:30]} 9. Qf3 {[%emt 0:08:00]} Qb6 {[%emt 0:07:30]} 10. Na4 {[%emt 0:00:30]} Qa5+ {[%emt 0:00:30]} 11. Bd2 {[%emt 0:00:30]} Bb4 {[%emt 0:00:30]} 12. c3 {[%emt 0:00:30]} b5 {[%emt 0:03:30]} 13. cxb4 {[%emt 0:00:30]} Qa6 {[%emt 0:00:00]} 14. fxe5 {[%emt 0:02:30]} dxe5 {[%emt 0:03:00]} 15. Qg3 {[%emt 0:02:30]} O-O {[%emt 0:03:30]} 16. Bh6 {[%emt 0:02:30]} Ne8 {[%emt 0:00:30]} 17. Be3 {[%emt 0:06:30]} f6 {[%emt 0:02:30]} 18. Ne2 {[%emt 0:01:30]} bxa4 {[%emt 0:00:30]} 19. Bc5 {[%emt 0:00:30]} Rf7 {[%emt 0:01:30]} 20. O-O {[%emt 0:02:30]} Be6 {[%emt 0:02:30]} 21. bxa4 {[%emt 0:00:30]} Rd7 {[%emt 0:01:30]} 22. Ra3 {[%emt 0:02:30]} Rad8 {[%emt 0:01:30]} 23. Nc1 {[%emt 0:01:30]} Qb7 {[%emt 0:02:30]} 24. Rf3 {[%emt 0:03:30]} Kh8 {[%emt 0:03:30]} 25. Nb3 {[%emt 0:00:30]} Nc7 {[%emt 0:02:30]} 26. Na5 {[%emt 0:01:30]} Qa6 {[%emt 0:00:30]} 27. Kh2 {[%emt 0:03:30]} Ne8 {[%emt 0:01:30]} 28. Qe1 {[%emt 0:02:30]} Nd6 {[%emt 0:03:30]} 29. Qc3 {[%emt 0:06:30]} Rc8 {[%emt 0:04:30]} 30. Qc2 {[%emt 0:03:30]} Nf7 {[%emt 0:03:30]} 31. Rc3 {[%emt 0:01:30]} Rdc7 {[%emt 0:04:09]} 32. Rf1 {[%emt 0:00:30]} Kg8 {[%emt 0:02:03]} 33. Rc1 {[%emt 0:03:11]} Nd8 {[%emt 0:07:48]} 34. Qd2 {[%emt 0:06:21]} Nb7 {[%emt 0:05:13]} 35. Nxb7 {[%emt 0:00:22]} Qxb7 {[%emt 0:00:38]} 36. Qc2 {[%emt 0:01:04]} Rd7 {[%emt 0:00:55]} 37. Bf2 {[%emt 0:00:31]} Qxb4 {[%emt 0:00:55]} 38. Rxc6 {[%emt 0:00:44]} Rxc6 {[%emt 0:01:13]} 39. Qxc6 {[%emt 0:00:06]} Kf7 {[%emt 0:00:10]} 40. Rc2 {[%emt 0:09:26]} f5 {[%emt 0:01:21]} 41. exf5 {[%emt 0:01:07]} Qf4+ {[%emt 0:00:30]} 42. Bg3 {[%emt 0:00:20]} Qxf5 {[%emt 0:00:05]} 43. Rf2 {[%emt 0:00:38]} Rxd3 {[%emt 0:01:15]} 44. Rxf5+ {[%emt 0:00:08]} Bxf5 {[%emt 0:00:12]} 45. Bxe5 {[%emt 0:00:25]} g5 {[%emt 0:00:32]} 46. Qf6+ {[%emt 0:00:37]} *

[Event "Istanbul Open 2018"]
[Site "Istanbul"]
[Date "2018.09.08"]
[Round "9"]
[White "Temizer, Umut"]
[Black "Can, Ilhan"]
[Result "1-0"]
[ECO "B00"]
[WhiteElo "1476"]
[BlackElo "1771"]
[Annotator "NA"]
[PlyCount "131"]
[EventDate "2018.09.02"]
[EventType "swiss"]
[EventCountry "TUR"]
[SourceTitle "playchess.com"]
[Source "ChessBase"]
[SourceQuality "1"]
[TimeControl "5400+30"]

1. e4 {[%emt 0:00:30]} b6 {[%emt 0:00:30]} 2. d4 {[%emt 0:01:30]} Bb7 {[%emt 0:00:00]} 3. Nc3 {[%emt 0:00:30]} e6 {[%emt 0:00:00]} 4. Nf3 {[%emt 0:01:30]} Bb4 {[%emt 0:01:30]} 5. Bd3 {[%emt 0:01:30]} c5 {[%emt 0:02:30]} 6. a3 {[%emt 0:02:30]} Bxc3+ {[%emt 0:04:30]} 7. bxc3 {[%emt 0:00:30]} c4 {[%emt 0:00:30]} 8. Bxc4 {[%emt 0:02:30]} Bxe4 {[%emt 0:00:30]} 9. O-O {[%emt 0:04:30]} Ne7 {[%emt 0:01:30]} 10. Ng5 {[%emt 0:05:30]} Bg6 {[%emt 0:03:30]} 11. Qf3 {[%emt 0:11:30]} Nbc6 {[%emt 0:02:30]} 12. Bd3 {[%emt 0:01:30]} O-O {[%emt 0:03:30]} 13. Bf4 {[%emt 0:10:30]} h6 {[%emt 0:08:30]} 14. Ne4 {[%emt 0:01:30]} d5 {[%emt 0:07:30]} 15. Ng3 {[%emt 0:02:30]} Bxd3 {[%emt 0:00:30]} 16. Qxd3 {[%emt 0:01:30]} Ng6 {[%emt 0:00:00]} 17. Bd2 {[%emt 0:00:30]} e5 {[%emt 0:03:00]} 18. Rae1 {[%emt 0:10:30]} e4 {[%emt 0:03:30]} 19. Qe2 {[%emt 0:00:30]} Na5 {[%emt 0:04:30]} 20. Nf5 {[%emt 0:02:30]} Nc4 {[%emt 0:00:30]} 21. Bc1 {[%emt 0:00:30]} Qf6 {[%emt 0:09:30]} 22. Qh5 {[%emt 0:02:30]} Rad8 {[%emt 0:09:30]} 23. f3 {[%emt 0:01:30]} e3 {[%emt 0:01:30]} 24. Nxe3 {[%emt 0:01:30]} Nxe3 {[%emt 0:00:30]} 25. Rxe3 {[%emt 0:01:30]} Nf4 {[%emt 0:04:30]} 26. Qe5 {[%emt 0:01:30]} Qg5 {[%emt 0:01:30]} 27. Qxg5 {[%emt 0:03:30]} hxg5 {[%emt 0:00:30]} 28. Re7 {[%emt 0:01:30]} Rc8 {[%emt 0:00:30]} 29. Bd2 {[%emt 0:02:30]} a5 {[%emt 0:01:30]} 30. g3 {[%emt 0:01:30]} Ne6 {[%emt 0:00:30]} 31. Rb7 {[%emt 0:02:30]} Rc6 {[%emt 0:00:30]} 32. Rb1 {[%emt 0:00:00]} Rfc8 {[%emt 0:02:30]} 33. R1xb6 {[%emt 0:01:00]} Rxc3 {[%emt 0:00:00]} 34. Bxc3 {[%emt 0:01:30]} Rxc3 {[%emt 0:00:00]} 35. Rb3 {[%emt 0:00:30]} Rxc2 {[%emt 0:00:30]} 36. Rd3 {[%emt 0:00:30]} Rc4 {[%emt 0:00:00]} 37. Rb5 {[%emt 0:00:30]} Nxd4 {[%emt 0:02:00]} 38. Rxa5 {[%emt 0:02:09]} Rc1+ {[%emt 0:01:30]} 39. Kg2 {[%emt 0:00:58]} Rc2+ {[%emt 0:00:30]} 40. Kh3 {[%emt 0:00:36]} Ne2 {[%emt 0:01:30]} 41. Raxd5 {[%emt 0:00:57]} Ng1+ {[%emt 0:00:30]} 42. Kg4 {[%emt 0:00:02]} f6 {[%emt 0:01:30]} 43. a4 {[%emt 0:01:22]} Kh7 {[%emt 0:00:30]} 44. Kf5 {[%emt 0:01:30]} Rf2 {[%emt 0:01:53]} 45. Ke4 {[%emt 0:01:03]} Ra2 {[%emt 0:01:29]} 46. a5 {[%emt 0:00:33]} Ne2 {[%emt 0:00:29]} 47. Kf5 {[%emt 0:00:59]} Nc1 {[%emt 0:00:48]} 48. Rd2 {[%emt 0:01:27]} Ra3 {[%emt 0:00:30]} 49. Ke6 {[%emt 0:00:05]} Nb3 {[%emt 0:02:47]} 50. R2d3 {[%emt 0:02:32]} Nc5+ {[%emt 0:00:18]} 51. Rxc5 {[%emt 0:00:08]} Rxd3 {[%emt 0:00:05]} 52. a6 {[%emt 0:00:14]} Ra3 {[%emt 0:00:41]} 53. Rc6 {[%emt 0:00:01]} Rxf3 {[%emt 0:00:40]} 54. a7 {[%emt 0:00:39]} Ra3 {[%emt 0:00:07]} 55. Rc7 {[%emt 0:00:18]} Ra6+ {[%emt 0:03:15]} 56. Kd7 {[%emt 0:00:50]} f5 {[%emt 0:00:20]} 57. Kc8 {[%emt 0:00:11]} f4 {[%emt 0:00:53]} 58. gxf4 {[%emt 0:00:11]} gxf4 {[%emt 0:00:07]} 59. Kb7 {[%emt 0:00:08]} Rxa7+ {[%emt 0:00:38]} 60. Kxa7 {[%emt 0:00:11]} Kh6 {[%emt 0:00:17]} 61. Kb6 {[%emt 0:01:21]} g5 {[%emt 0:00:09]} 62. Kc5 {[%emt 0:00:16]} g4 {[%emt 0:00:35]} 63. Kd4 {[%emt 0:00:12]} Kg5 {[%emt 0:01:05]} 64. Ke4 {[%emt 0:00:15]} g3 {[%emt 0:00:38]} 65. hxg3 {[%emt 0:00:10]} fxg3 {[%emt 0:00:09]} 66. Kf3 {[%emt 0:00:09]} 1-0